Cogmind - Beta 17 @@@ ROGUE MODE // 2026.07.18 @ 04:45:15 Player: cxt100s Result: Self-destructed Performance ------------- Evolutions (1) 500 Regions Visited (5) 1000 Robots Destroyed (80) 400 Value Destroyed (1512) 1512 Prototype IDs (34) 680 Alien Tech Used (0) 0 Bonus (5718) 5718 TOTAL SCORE: 9810 Bonus ------- Prayed to X0-1V1 5000 Major X0-1V1 Interference 500 Aligned with FarCom 300 Friendly Fire -82 Cogmind --------- Core Integrity 588/600 Matter 295/300 Energy 280/280 System Corruption 0% Temperature Cool (0) Movement Treading (280) Ox2 Location -9/Exiles Parts ------- > --- POWER (1) -------- Cooled Ion Engine > --- PROPULSION (3) --- Light Treads Improved Treads > --- UTILITY (3) ------ Huge Storage Unit Core Shielding X0-1V1's Piety Tracker > --- WEAPON (2) ------- Improved Light Cannon Ripper > --- INVENTORY (25) --- Light Ion Engine Cooled Ion Engine Nuclear Core Light Treads Light Treads Armored Wheel Flight Unit Flight Unit Flight Unit Improved Flight Unit Improved Flight Unit Improved Flight Unit Improved Flight Unit Heat Sink ECM Suite Hardened Light Armor Plating Hacking Suite Improved EM Shotgun Improved Assault Rifle Improved Assault Rifle Improved Assault Rifle Improved Assault Rifle Proton Missile Launcher Grenade Launcher Great Maul Peak State ------------ > --- POWER ------------ Cooled Ion Engine > --- PROPULSION ------- Light Treads Light Treads Improved Treads > --- UTILITY ---------- Huge Storage Unit Core Shielding X0-1V1's Piety Tracker > --- WEAPON ----------- Improved EM Shotgun Improved Assault Rifle Improved Assault Rifle Improved Assault Rifle Improved Assault Rifle Improved Light Cannon > --- INVENTORY -------- Light Ion Engine Cooled Ion Engine Nuclear Core Light Treads Light Treads Armored Wheel Armored Wheel Armored Wheel Flight Unit Flight Unit Flight Unit Flight Unit Improved Flight Unit Improved Flight Unit Improved Flight Unit Improved Flight Unit Heat Sink ECM Suite Hardened Light Armor Plating Hacking Suite Proton Missile Launcher Grenade Launcher Makeshift Hammer Axe [Rating: 44] Favorites ----------- Power Cooled Ion Engine Engine Cooled Ion Engine Propulsion Light Treads Treads Light Treads Leg Aluminum Leg Wheel Wheel Utility X0-1V1's Piety Tracker Device X0-1V1's Piety Tracker Storage Huge Storage Unit Protection Core Shielding Weapon Improved Assault Rifle Energy Gun Medium Laser Ballistic Gun Improved Assault Rifle Ballistic Cannon Improved Light Cannon Launcher Mini Grenade Launcher Special Weapon Mining Laser Impact Weapon Makeshift Hammer Slashing Weapon Ripper Build | -11 -10 -10 -9 -9 -9 ------- Run | Yrd Mat Min Mat Min Exi Slots Evolved 2 | . . . 2 . . Power . | . . . . . . Propulsion 1 | . . . 1 . . Utility 1 | . . . 1 . . Weapon . | . . . . . . Parts Attached 58 | 4 7 4 41 1 1 Power 6 | . . 1 5 . . Engine 6 | . . 1 5 . . Core . | . . . . . . Reactor . | . . . . . . Propulsion 15 | 2 . 1 12 . . Treads 11 | 2 . 1 8 . . Leg . | . . . . . . Wheel 4 | . . . 4 . . Hover . | . . . . . . Flight . | . . . . . . Utility 14 | 1 5 1 7 . . Device 6 | 1 1 1 3 . . Storage 4 | . 2 . 2 . . Processor . | . . . . . . Hackware . | . . . . . . Protection 4 | . 2 . 2 . . Artifact . | . . . . . . Weapon 23 | 1 2 1 17 1 1 Energy Gun 7 | 1 . . 6 . . Energy Cannon . | . . . . . . Ballistic Gun 9 | . 2 . 7 . . Ballistic Cannon 2 | . . 1 1 . . Launcher 2 | . . . 1 1 . Special Weapon 1 | . . . 1 . . Impact Weapon 1 | . . . 1 . . Slashing Weapon 1 | . . . . . 1 Piercing Weapon . | . . . . . . Special Melee Weapon . | . . . . . . Unidentified Prototypes 6 | . 1 . 5 . . Parts Lost 16 | . . 2 13 . 1 Power 2 | . . . 2 . . Propulsion 7 | . . 1 5 . 1 Utility 3 | . . 1 2 . . Weapon 4 | . . . 4 . . Highest Loss Streak 11 | . . 1 11 . 1 To Critical Strikes . | . . . . . . Average Backups 20 | 4 14 19 23 24 25 Power 1 | 1 1 . 2 3 3 Propulsion 7 | 2 4 5 8 10 10 Utility 5 | . 5 8 5 3 4 Weapon 5 | 1 3 3 6 8 8 Tool/Special . | . . . . . . Unused Backups 47 | . 6 2 16 5 18 Power 7 | . 1 . 2 1 3 Propulsion 18 | . . 1 7 . 10 Utility 7 | . 2 . 2 . 3 Weapon 13 | . 2 1 4 4 2 Tool/Special 2 | . 1 . 1 . . Average Slot Usage (%) 97 | . 99 99 93 100 100 Engine 11 | . 14 14 9 11 11 Treads 27 | . 27 28 24 33 33 Wheel 1 | . . . 3 . . Device 9 | . 5 8 12 11 11 Storage 11 | . 14 14 10 11 11 Protection 8 | . 8 5 8 11 11 Energy Gun 9 | . 14 2 10 . . Ballistic Gun 12 | . 14 14 11 10 10 Ballistic Cannon 2 | . . 11 1 11 11 Peak Build Rating 44 | 7 21 21 44 32 33 Average Rating 22 | 6 8 16 31 31 32 On Entrance 19 | 6 7 21 21 32 32 Avg Prop Armor Cover (%) 19 | . . . 19 . . Naked Turns . | . . . . . . Heaviest Build 109 | 15 54 55 109 97 97 Greatest Support 63 | 40 40 40 63 63 63 Greatest Overweight (x) 9 | . 1 1 9 1 1 Average Overweight (x) 1 | . . 1 2 1 1 Largest Inventory Capacity 25 | 8 20 20 25 25 25 Average Capacity 21 | 8 16 20 24 25 25 Most Carried 25 | 6 20 20 25 25 25 Average Carried 20 | 3 14 19 23 24 25 Final Capacity 25 | 8 20 20 25 25 25 Final Carried 25 | 3 20 20 25 25 25 Class Distribution -------------------- 93% | Mutant 3% | Tank Dominant Class ---------------- Mutant | -10/Materials Mutant | -10/Mines Mutant | -9/Materials Mutant | -9/Mines Mutant | -9/Exiles Resources | -11 -10 -10 -9 -9 -9 ----------- Run | Yrd Mat Min Mat Min Exi Matter Collected 2360 | 252 250 247 1533 78 . Remotely . | . . . . . . Salvage Created 2709 | 120 468 141 1823 157 . Parts 152 | 4 29 7 104 8 . Haulers Intercepted 8 | . 2 . 6 . . Recyclers Shooed 5 | 1 3 . 1 . . Parts Field Recycled . | . . . . . . Retrieved Matter . | . . . . . . Parts Self-Destructed . | . . . . . . Prevented . | . . . . . . Parts Restored . | . . . . . . Kills | -11 -10 -10 -9 -9 -9 ------- Run | Yrd Mat Min Mat Min Exi Combat Hostiles Destroyed 42 | . 10 4 25 3 . Guns 32 | . 10 2 19 1 . Cannons 3 | . . 2 1 . . AOE 7 | . . . 5 2 . Classes Destroyed 12 | 2 6 3 1 . . Worker 5 | . 1 1 2 1 . Builder 7 | . . 1 5 1 . Tunneler 3 | 1 . . 2 . . Hauler 8 | . 2 . 6 . . Recycler 7 | 1 1 . 4 1 . Operator 3 | . 1 . 2 . . Watcher 7 | . 3 . 4 . . Swarmer 12 | . 8 . 4 . . Grunt 21 | . 2 1 15 3 . Duelist 1 | . . . 1 . . Sentry 6 | . . 1 5 . . Assembled 2 | . . 2 . . . Best Kill Streak 11 | 2 4 3 11 5 . Combat Bots Only 10 | . 3 1 10 3 . Max Kills in Single Turn 4 | 1 1 1 4 2 . Gunslinging . | . . . . . . Exploded 3 | . . . 3 1 . Melee . | . . . . . . Uniques/NPCs Destroyed . | . . . . . . Combat | -11 -10 -10 -9 -9 -9 -------- Run | Yrd Mat Min Mat Min Exi Hostile Shots Fired 279 | . 57 47 164 9 2 Missed 76 | . 18 8 48 2 . Hits 203 | . 39 39 116 7 2 Melee 14 | . . . 14 . . Projectile 189 | . 39 39 102 7 2 Critical Strikes 7 | . . 1 6 . . Part Disruptions 1 | . . 1 . . . Damage Taken 3105 | . 349 545 1939 160 112 Core 442 | . 75 39 328 . . Absorbed by Shields . | . . . . . . Redirected to Shielding 7 | . . . 7 . . Regen/Repaired (Parts) 170 | . 170 . . . . Core Remaining (%) 77 | 100 . 54 . . . Volleys Fired 236 | 4 60 31 134 7 . Largest 4 | 2 2 2 4 2 . Hottest 114 | 70 70 70 114 56 . Shots Fired 441 | 8 118 62 242 11 . Gun 384 | 8 118 36 218 4 . Cannon 43 | . . 26 13 4 . Launcher 9 | . . . 6 3 . Special 5 | . . . 5 . . Kinetic 249 | 4 60 57 120 8 . Thermal 118 | 4 58 5 51 . . Explosive 9 | . . . 6 3 . Electromagnetic 65 | . . . 65 . . Robot Hit Streak 22 | 5 9 5 22 15 . Robot Miss Streak 6 | 1 4 6 6 2 . Penetration Max . | . . . . . . Secondary Targets 3 | . 2 . 1 . . Max Gunslinging Chain 1 | . 1 . 1 . . Shots Hit Robots 283 | 6 71 31 167 7 1 Core Hits 140 | 3 24 14 91 8 . Critical Kills 1 | . 1 . . . . Critical Parts Destroyed 2 | . . . 2 . . Critical Strikes 10 | . 4 . 6 . . Burn 5 | . 3 . 2 . . Destroy 3 | . 1 . 2 . . Blast 2 | . . . 2 . . Melee Attacks 4 | . . . 3 . 1 Impact 3 | . . . 3 . . Slashing 1 | . . . . . 1 Piercing . | . . . . . . Sneak Attacks . | . . . . . . Combat Hostiles . | . . . . . . Follow-up Attacks . | . . . . . . Damage Inflicted 5092 | 71 960 530 3015 434 82 Guns 3636 | 71 960 225 2364 16 . Cannons 472 | . . 305 109 58 . Explosions 826 | . . . 522 304 . Melee 82 | . . . . . 82 Ramming 76 | . . . 20 56 . Kinetic 2190 | 35 507 469 1105 74 . Thermal 1125 | 36 453 61 575 . . Explosive 826 | . . . 522 304 . Electromagnetic 793 | . . . 793 . . Impact . | . . . . . . Slashing 82 | . . . . . 82 Piercing . | . . . . . . Highest Corruption . | . . . . . . Average Corruption . | . . . . . . Corruption Purged . | . . . . . . Corruption Blocked . | . . . . . . Overload Shots . | . . . . . . Overflow Damage 13 | . . . 13 . . Projectiles . | . . . . . . Explosions 13 | . . . 13 . . Melee . | . . . . . . Knockbacks 6 | . . 4 . 2 . Impact . | . . . . . . Kinetic 6 | . . 4 . 2 . Secondary . | . . . . . . Self-Inflicted Damage 265 | . . . 188 77 . Shots 7 | . . . 4 3 . Rammed 9 | . . . 6 3 . Targets Rammed 10 | . . . 6 4 . Kicked . | . . . . . . Crushed 1 | . . . . 1 . Highest Temperature 317 | 47 317 153 228 5 . Average Temperature 53 | 30 65 42 45 5 . Received Heat Transfer 911 | . 12 239 612 48 . Siege Activations . | . . . . . . Martial Activations . | . . . . . . Shielding Activations . | . . . . . . Robots Disrupted 1 | . . . 1 . . Combat Hostiles . | . . . . . . Robots Corrupted 1 | . . . 1 . . Combat Hostiles . | . . . . . . Parts Fried 5 | . . . 5 . . Impact Corruptions . | . . . . . . Robots Melted . | . . . . . . Combat Hostiles . | . . . . . . Parts Melted 3 | 1 . 1 1 . . Heat Transferred 3330 | 111 1554 185 1480 . . Parts Sabotaged . | . . . . . . Parts Stolen . | . . . . . . Parts Stripped . | . . . . . . Power Chain Reactions . | . . . . . . Alert | -11 -10 -10 -9 -9 -9 ------- Run | Yrd Mat Min Mat Min Exi Maximum Alert Level 1 | . . . 1 . . Low Security (%) 79 | 100 100 100 57 100 . Level 1 20 | . . . 42 . . Level 2 . | . . . . . . Level 3 . | . . . . . . Level 4 . | . . . . . . Level 5 . | . . . . . . High Security . | . . . . . . Max Security . | . . . . . . Peak Influence 327 | 10 70 30 327 119 . Initial 72 | . . . . 72 . Average 83 | 1 10 7 161 53 . Influence Increases 1591 | 10 314 75 1090 102 . Destroy 0b10 Robot/C 800 | . 200 40 500 60 . Destroy 0b10 Robot/NC 200 | 10 40 10 125 15 . Destroy Leader 220 | . 50 10 150 10 . Successful Hack 46 | . 23 . 23 . . Disable Machine 45 | . . . 45 . . Destroy Structure 58 | . 1 . 40 17 . Partial Spotted 15 | . . . 15 . . Lose Combat Pursuer 105 | . . 15 90 . . Miscellaneous 102 | . . . 102 . . Influence Decreases 1591 | 10 314 75 904 288 . Entered New Map 114 | . . . . 114 . Time Decay 1197 | 10 314 75 624 174 . Lost Part 130 | . . . 130 . . Purge Threat 150 | . . . 150 . . Squads Dispatched 5 | . 1 . 4 . . Investigation 1 | . . . 1 . . Extermination . | . . . . . . Reinforcement 4 | . 1 . 3 . . Assault . | . . . . . . Garrison . | . . . . . . Intercept . | . . . . . . Searches Triggered . | . . . . . . Construction Impeded 1 | . . . 1 . . Haulers Reinforced . | . . . . . . Active Scanning Responses . | . . . . . . Cargo Convoy Interrupts . | . . . . . . Stealth | -11 -10 -10 -9 -9 -9 --------- Run | Yrd Mat Min Mat Min Exi Distress Signals 8 | . . 1 7 . . Communications Jammed . | . . . . . . Distress Signals . | . . . . . . Times Spotted 83 | . 18 9 52 3 1 Peak Tracking Total 11 | . 4 4 8 3 11 Tactical Retreats 7 | . . 2 5 . . Traps | -11 -10 -10 -9 -9 -9 ------- Run | Yrd Mat Min Mat Min Exi Traps Triggered 1 | . 1 . . . . Indirectly . | . . . . . . Trap Hack Attempts . | . . . . . . Triggered . | . . . . . . Disarmed . | . . . . . . Reprogrammed . | . . . . . . Reused . | . . . . . . Traps Extracted . | . . . . . . Installed . | . . . . . . Triggered . | . . . . . . Machines | -11 -10 -10 -9 -9 -9 ---------- Run | Yrd Mat Min Mat Min Exi Machines Disabled 3 | . . . 3 . . Max in Single Turn 1 | . . . 1 . . Machines Repaired . | . . . . . . Machines Dismantled . | . . . . . . Machines Sabotaged . | . . . . . . Overloaded Fab Kills . | . . . . . . Hacking | -11 -10 -10 -9 -9 -9 --------- Run | Yrd Mat Min Mat Min Exi Machines Accessed 23 | . 7 . 11 . 5 Terminals 14 | . 5 . 9 . . Fabricators . | . . . . . . Repair Stations 2 | . 1 . 1 . . Recycling Units 1 | . 1 . . . . Scanalyzers 1 | . . . 1 . . Garrison Access . | . . . . . . Total Hacks 83 | . 20 . 32 . 31 Successful 63 | . 13 . 19 . 31 Failed 19 | . 7 . 12 . . Catastrophic 2 | . . . 2 . . Database Lockouts 1 | . . . 1 . . Manual 29 | . 16 . 12 . 1 Terminals 39 | . 14 . 25 . . Fabricators . | . . . . . . Repair Stations 6 | . 4 . 2 . . Recycling Units 2 | . 2 . . . . Scanalyzers 5 | . . . 5 . . Garrison Access . | . . . . . . Terminal Hacks 38 | . 1 . 6 . 31 Record 30 | . . . . . 30 Prototype ID Bank 3 | . 1 . 2 . . Unreport Threat 1 | . . . 1 . . Locate Traps 1 | . . . 1 . . Transport Status 1 | . . . 1 . . Hauler Manifests 1 | . . . 1 . . Proto ID Catalog 1 | . . . . . 1 Fabricator Hacks . | . . . . . . Repair Station Hacks 5 | . 4 . 1 . . Scan Component 3 | . 2 . 1 . . Repair 2 | . 2 . . . . Recycling Unit Hacks . | . . . . . . Scanalyzer 5 | . . . 5 . . Insert Component 1 | . . . 1 . . Analyze 1 | . . . 1 . . Retrieve Study 3 | . . . 3 . . Garrison Access Hacks . | . . . . . . Unauthorized Hacks 15 | . 8 . 7 . . Terminals 14 | . 7 . 7 . . Botnet 4 | . 2 . 2 . . Skim 10 | . 5 . 5 . . Fabricators . | . . . . . . Repair Stations . | . . . . . . Recycling Units 1 | . 1 . . . . Reject 1 | . 1 . . . . Scanalyzers . | . . . . . . Garrison Access . | . . . . . . Data Cores Recovered . | . . . . . . Used . | . . . . . . Hacking Detections 13 | . 4 . 9 . . Full Trace Events 1 | . . . 1 . . Feedback Events . | . . . . . . Feedback Blocked . | . . . . . . Robot Schematics Acquired . | . . . . . . Robots Built . | . . . . . . Authchips . | . . . . . . Time . | . . . . . . Total Robot Build Rating . | . . . . . . Part Schematics Acquired 1 | . . . 1 . . Parts Built . | . . . . . . Authchips . | . . . . . . Time . | . . . . . . Total Part Build Rating . | . . . . . . Part Studies Acquired 3 | . . . 3 . . Parts Repaired 2 | . 2 . . . . Time 52 | . 52 . . . . Parts Recycled . | . . . . . . Recycled Matter . | . . . . . . Retrieved Matter . | . . . . . . Retrieved Components . | . . . . . . Parts Scanalyzed 1 | . . . 1 . . Part Schematics Acquired 1 | . . . 1 . . Parts Damaged . | . . . . . . Bothacking | -11 -10 -10 -9 -9 -9 ------------ Run | Yrd Mat Min Mat Min Exi Used RIF Installer . | . . . . . . Robots Hacked . | . . . . . . Non-combat . | . . . . . . Combat . | . . . . . . Robot Hacks Applied . | . . . . . . Relay Couplers Released . | . . . . . . Fabnet Peak Effective % . | . . . . . . Robots Rewired . | . . . . . . Allies Hacked . | . . . . . . Hacks Repelled . | . . . . . . Allies | -11 -10 -10 -9 -9 -9 -------- Run | Yrd Mat Min Mat Min Exi Total Allies . | . . . . . . Largest Group . | . . . . . . Highest-Rated Group . | . . . . . . Highest-Rated Ally . | . . . . . . Total Orders . | . . . . . . Ally Attacks . | . . . . . . Total Damage . | . . . . . . Kills . | . . . . . . Allies Corrupted . | . . . . . . Allies Melted . | . . . . . . X0-1V1 Amusement Gains 114 | . 4 30 20 . 60 Good Acts 24 | . . . 19 5 . Bad Acts 4 | . . 2 2 . . Intel | -11 -10 -10 -9 -9 -9 ------- Run | Yrd Mat Min Mat Min Exi Active Infowar (turns) 1181 | 6 1175 . . . . Seismic 1181 | 6 1175 . . . . Robot Analysis Total . | . . . . . . Derelict Logs Recovered . | . . . . . . Drone Launches . | . . . . . . Drone Recoveries . | . . . . . . Exploration | -11 -10 -10 -9 -9 -9 ------------- Run | Yrd Mat Min Mat Min Exi Turns Passed 7772 | 28 2966 252 3237 398 891 Spaces Moved 3138 | 6 1295 54 1196 171 416 Core . | . . . . . . Treads 2915 | 6 1295 54 973 171 416 Legs . | . . . . . . Wheels 223 | . . . 223 . . Hover . | . . . . . . Flight . | . . . . . . Fastest Speed 113 | 160 160 240 113 213 213 Average Speed 209 | 160 205 240 211 213 213 Slowest Speed 240 | 160 240 240 240 213 213 Overloaded Moves . | . . . . . . Propulsion Burnouts . | . . . . . . Robots Hopped . | . . . . . . Potential Cave-ins . | . . . . . . Cave-ins Triggered . | . . . . . . Exploration Rate (%) 55 | 2 98 32 75 49 78 Regions Visited 5 Branch Regions 3 Pre-discovered Areas 1 | . . . . . 1 Known Exits Taken 3 | . . 1 1 1 . Unknown Exits Taken 2 | 1 1 . . . . Scrap Searched 2 | . . 1 . 1 . Spaces Dug 8 | . . . 8 . . Terrain Destroyed 62 | . . . 39 23 . Melee 3 | . . . 3 . . Projectile 5 | . . . 5 . . AOE 54 | . . . 31 23 . Terrain Rammed . | . . . . . . Walls Destroyed . | . . . . . . Machines Disabled . | . . . . . . Actions | -11 -10 -10 -9 -9 -9 --------- Run | Yrd Mat Min Mat Min Exi Total 3880 | 16 1482 116 1655 193 418 Wait 274 | . 88 17 169 . . Move 3133 | 5 1294 53 1195 170 416 Hop . | . . . . . . Pick Up 88 | . 24 6 53 5 . Fast Attach 9 | 1 1 . 7 . . Attach 21 | . 1 2 18 . . Detach 1 | . . . 1 . . Swap 44 | 3 6 3 29 2 1 Drop 60 | 3 8 4 40 5 . Fire 236 | 4 60 31 134 7 . Melee 4 | . . . 3 . 1 Ram . | . . . . . . Kick . | . . . . . . Crush 10 | . . . 6 4 . Escape Stasis . | . . . . . . Rewire . | . . . . . . Trap . | . . . . . . Miscellaneous . | . . . . . . Route ------- -11/Scrapyard -10/Materials (discovered 5 exits: *Mat x3 / [*Min] / [*Sub]) -10/Mines (discovered 2 exits: *Mat x2) -9/Materials (discovered 4 exits: *Mat x3 / *Min) -9/Mines (discovered 4 exits: *Mat x2 / *Exi / [*Zio]) -9/Exiles (discovered 2 exits: *Min x2) History --------- Turn | Location | Event 13 | -11/Scrapyard | Discovered new exit (range 2) 29 | -11/Scrapyard | Entered Materials 310 | -10/Materials | Build established: Mutant 411 | -10/Materials | Discovered new exit (range 8) 523 | -10/Materials | Discovered new exit (range 9) 548 | -10/Materials | Discovered new exit (range 3) 972 | -10/Materials | Discovered new exit (range 16) 1981 | -10/Materials | Discovered new exit (range 7) 2410 | -10/Materials | Learned Storage terminal intel 2440 | -10/Materials | Learned Storage stockpile data 2476 | -10/Materials | Learned Storage emergency access door positions 2498 | -10/Materials | Learned location of 2 exits from Materials 2610 | -10/Materials | Repaired Lgt. Treads 2716 | -10/Materials | Repaired Assault Rifle 2920 | -10/Materials | Prayed at D.C.S.S. Altar Unit 2995 | -10/Materials | Entered Mines 2996 | -10/Mines | Assembled infested the area 2996 | -10/Mines | Identified exit to Materials 3031 | -10/Mines | Joined a pair of Derelicts in attacking an 0b10 outpost 3247 | -10/Mines | Entered Materials 3247 | -9/Materials | Evolved 2 slots: Propulsion x1, Utility x1 3248 | -9/Materials | Identified exit to Mines 3249 | -9/Materials | Identified exit to Materials 3444 | -9/Materials | X0-1V1 added 0b10 threat records associated with you (minor) 3554 | -9/Materials | Core integrity fell below 50% 3612 | -9/Materials | Destroyed 10 combat bots 3619 | -9/Materials | Lost 11 parts (1p4n2u4w) 3722 | -9/Materials | EM resistance permanently improved by X0-1V1 (+20%; -200 max core) 3884 | -9/Materials | X0-1V1 sent you to a vault 4246 | -9/Materials | X0-1V1 revealed exit location to -8/Materials 4501 | -9/Materials | Core integrity restored by X0-1V1 (+58) 4695 | -9/Materials | Central database locked down 5091 | -9/Materials | Learned 4 Recycling zone layouts 5148 | -9/Materials | Loaded intel: 13 trap records 5195 | -9/Materials | Learned Storage trap positions 5261 | -9/Materials | Learned 4 Recycling zone layouts 5857 | -9/Materials | Weapon slot count temporarily expanded by X0-1V1 (+4) 5871 | -9/Materials | X0-1V1 whisked you away to safety 5940 | -9/Materials | X0-1V1 activates XOMVISION 6026 | -9/Materials | X0-1V1 foreshadows a heat wave 6215 | -9/Materials | Ambient heat levels rising (+10) 6260 | -9/Materials | Core integrity restored by X0-1V1 (+58) 6484 | -9/Materials | Entered Mines 6485 | -9/Mines | A Derelict revealed a hidden shortcut to a safe place 6564 | -9/Mines | Core integrity permanently improved by X0-1V1 (+400) 6664 | -9/Mines | A weapon hastily lodged in a ceiling crevice suddenly fell to the ground 6756 | -9/Mines | Identified exit to Exiles 6756 | -9/Mines | X0-1V1 revealed exit location to -9/Exiles 6873 | -9/Mines | Deemed a non-threat by the Exiles lab entrance 6882 | -9/Mines | Entered Exiles 6883 | -9/Exiles | Identified exit to Mines 6936 | -9/Exiles | Met 8R-AWN 6966 | -9/Exiles | Met EX-HEX 7034 | -9/Exiles | Met EX-BIN 7068 | -9/Exiles | Aligned with FarCom system 7070 | -9/Exiles | Given EX-Vault access code 7183 | -9/Exiles | Opened EX-Vault 7238 | -9/Exiles | Warned to stay clear of 0b10 Research branches 7298 | -9/Exiles | Met EX-DEC 7311 | -9/Exiles | Learned location of Zion (-7) 7478 | -9/Exiles | Visited The Gauntlet 7628 | -9/Exiles | Discovered exit to Mines (range 14) 7769 | -9/Exiles | Attacked by the Exiles 7773 | -9/Exiles | Self-destructed Last Messages --------------- PINNED - Anyone passing by a Warlord outpost feel free to stop in for assistance. Of course they lose outposts like a wild Derelict loses bolts, but one of the latest major bases seems to be at about -5 or -4, somewhere out beyond the Upper Caves. >>Record "MSG003537-01*" PINNED - Until our FarCom is fully operational, I strongly recommend anyone spending a while in 0b10 bring along sensors with decent range to avoid running into patrols. A Signal Interpreter is optional since I know you're all smart enough to figure out what most of the blips are by watching their behavior for a short while. >>Record "MSG004902-01*" PINNED - I saw a Programmer snooping around in the Mines recently, it's only a matter of time before they find us. We might need to prioritize getting out of here and finding a better environment less hostile to science. 07577_ Energy capacity returns to normal. 07628_ EXIT=FOUND: MINES 07768_ Sneak attack on A-02 Transporter. 07769_ EXILES: Hostile robot within lab perimeter. Defensive protocols time, folks! 07769_ X0-1V1 thinks this is hilarious! 07771_ EX-DEC: "Let's see what this bad boy can do..." 07771_ EX-DEC deploys DAS Turret. 07772_ Lgt. Treads+ destroyed. Map ----- +----------------------------------------------------+ | ""#????????????" """#???????## """""?? | | #??????????????" #????????# """##?? | | #?????????????"" #????????#" "X" """""?? | | ##????????????"" "#????????#" """ #??? | | "#???????????? ""?????????#" """""""""#??? | | ###???????????" "?????????##" ###########??? | | ##??????????# #????????##"" #????????????? | | ######???### ###?######"" #????????????? | | """#####X# #"###""""""" ##???????????? | | """""" " "" ##???######## | | # "" """ " #####""""""" | | ## " " " """ " | | ?### "" | | ???### " | | ?????## | | ??????## | | ???????##" | | ????????#""" """""" | | ???????##" ######""" | | ???????#"" ""##????#####""" | | ??????##""" """##?????????##""" | | ??????#""" """##???????????#"""" | | ??????#""" ""#????????????#"" | | ??????#"" ########??####"""" | | ??????#""" ##aaa####""" | | ??????#"" @ """" | | ??????##"" t % | | ???????#"""" % | | ???????## c " | | ????????#" " "" """ | | ????????#"""" ""## ##""" " " ""#" | | ????????#"" ""#### ######""" """##" | | ????????#" """"##??# #?????##""""??## | | ????????#""" """#??## ####?????#?#???? | | ????????## ""##??#! "!#???????????? | | ?????????#"" """##???#" !#???????????? | | ?????????##""" ##????#" "#???????????? | | ??????????##"""" ##?????#!!""!"#???????????? | | ???????????### #??????########???????????? | | ?????????????##### ##?????????????????????????? | | ?????????????????## #??????????????????????????? | | ??????????????????# #??????????????????????????? | | ??????????????????# #??????????????????????????? | | ??????????????????# #??????????????????????????? | | ??????????????????# #??????????????????????????? | | ??????????????????# #??????????????????????????? | | ??????????????????# #??????????????????????????? | | ??????????????????# #??????????????????????????? | | ??????????????????# #??????????????????????????? | | ??????????????????# #??????????????????????????? | +----------------------------------------------------+ Best States ------------- Heat Dissipation 38 Energy Generation 14 Energy Capacity 1680 Matter Stores 1000 Matter Capacity 1000 Sight Range 22 Terrain Scan Density 10 Armor Coverage 150 Resistance: EM 20 Core Shielding 20 Evasion (%) 40 Recoil Reduction 3 Item Schematics ----------------- Imp. Flight Unit | -9/Materials | Scanalyzed Robot Schematics ------------------ None Fabricated ------------ Nothing Repaired ---------- Lgt. Treads | 43% | -10/Materials Assault Rifle | 9% | -10/Materials Studied --------- Flight Unit | -9/Materials | Hacked Lgt. Ion Engine | -9/Materials | Hacked Lgt. Treads | -9/Materials | Hacked Alien Tech Used ----------------- None Achievements -------------- Chaos Is Inevitable Challenges ------------ None Game ------ Seed FireBombardmentPulseblaster Manual? 0 Play Time 01:21:48 Cumulative 345.3 hours Start 2026.07.18 @ 02:54:23 End 2026.07.18 @ 04:45:15 Sessions 1 Manual Loads 0 Difficulty Rogue Special Mode None Game No. 118 Rogue 118 Adventurer 0 Explorer 0 Win Type - Total 15 Types 11/0/1/0/1/0/0/0/0/2 Lore% 60 Gallery% 51 Achievement% 46 Wizard Run 0 Options --------- Layout 0 ASCII 0 Keyboard 0 Movement Numpad Keybinds 0 Fullscreen 1 Font 20/SmallcapsGlow Map View 90x57 Zoom Use 0% Tactical HUD 1 Map Filters NONE Filters BRIGHTNESS(200) Steam 1 RUN: c25be893-ce40-4f6a-875f-3ddab7430cd4